bitfinex-derivatives/quotes_SOLF0:USTF0_20250623
["timestamp","ask_amount","ask_price","bid_price","bid_amount"]
[1750713900986,5.82754463,141.56,141.53,7.3375907]
[1750713901189,6.5624014,141.62,141.57,7.0598]
[1750713901382,5.82676911,141.61,141.55,7.3375907]
[1750713901588,5.82676911,141.6,141.55,7.3375907]
[1750713901794,38.06,141.62,141.54,6.8568]
[1750713902010,12.88246838,141.61,141.56,7.3375907]
[1750713902290,7.0581,141.61,141.56,7.3375907]
[1750713902886,7.0581,141.61,141.58,7.0592]
[1750713903390,7.0581,141.61,141.56,7.3375907]
[1750713905096,7.0581,141.61,141.58,7.0593]
[1750713905297,45.1178,141.62,141.56,7.3375907]
[1750713905497,38.06,141.62,141.54,68.8568]
[1750713905694,7.0585,141.61,141.58,7.0592]
[1750713906998,45.1178,141.62,141.58,7.0592]
[1750713909099,7.0581,141.61,141.58,7.0592]
[1750713909296,38.06,141.62,141.55,7.32785706]
[1750713909606,7.32785706,141.61,141.55,7.32785706]
[1750713910701,7.0586,141.6,141.55,7.32785706]
[1750713910897,38.06,141.62,141.54,6.8568]
[1750713911110,13.18771536,141.61,141.54,6.8568]
[1750713911295,5.8598583,141.6,141.57,7.06]
[1750713911494,14.38625706,141.61,141.57,7.06]
[1750713911703,5.86000397,141.6,141.57,7.06]
[1750713911904,7.0586,141.6,141.57,7.06]
[1750713912306,7.0586,141.6,141.56,7.0603]
[1750713912803,7.0586,141.6,141.57,7.0599]
[1750713913011,7.0586,141.6,141.54,6.8568]
[1750713913209,7.0591,141.59,141.54,6.8568]
[1750713913610,7.0591,141.59,141.55,7.0606]
[1750713913910,7.0597,141.58,141.54,6.8568]
[1750713914109,45.0997,141.58,141.54,11.5787]
[1750713914913,38.04,141.58,141.54,4.5174]
[1750713915105,38.04,141.58,141.51,7.32785706]
[1750713915811,38.04,141.58,141.5,9.75325706]
[1750713915812,13.1898926,141.57,141.5,9.75325706]
[1750713916012,7.32785706,141.57,141.5,9.75325706]
[1750713916210,7.0609,141.56,141.52,7.0622]
[1750713916409,7.0609,141.56,141.5,9.75325706]
[1750713917111,7.32785706,141.57,141.5,2.4254]
[1750713917311,7.32785706,141.57,141.51,7.0628]
[1750713917908,7.0615,141.55,141.51,7.0628]
[1750713918108,38.04,141.54,141.51,7.0628]
[1750713918416,45.1018,141.54,141.5,9.4887]
[1750713918612,38.04,141.54,141.48,12.03325706]
[1750713919215,7.32785706,141.53,141.48,4.7054]
[1750713919713,7.063,141.51,141.48,11.7696]
[1750713920410,7.063,141.51,141.48,4.7054]
[1750713920615,7.32785706,141.51,141.44,38.04]
[1750713920823,38.04,141.5,141.44,38.04]
[1750713921016,38.04,141.5,141.43,7.32785706]
[1750713921407,7.0641,141.49,141.45,7.066]
[1750713921610,7.32785706,141.49,141.42,7.25]
[1750713922206,7.32785706,141.47,141.42,7.25]
[1750713922412,34.8674014,141.53,141.42,4.8241]
[1750713922413,7.32785706,141.45,141.42,4.8241]
[1750713922621,45.38785706,141.45,141.39,7.32785706]
[1750713922811,7.0668,141.44,141.4,7.0684]
[1750713923011,7.32785706,141.43,141.37,14.40185706]
[1750713923318,7.0678,141.42,141.38,7.0693]
[1750713923512,45.38785706,141.41,141.37,7.074]
[1750713923709,7.32785706,141.41,141.37,4.6481]
[1750713924112,7.32785706,141.41,141.37,2.2246]
[1750713924617,7.32785706,141.39,141.33,9.67185706]
[1750713924815,38.06,141.42,141.33,11.89645706]
[1750713925016,7.32785706,141.39,141.35,7.0707]
[1750713926115,38.06,141.38,141.34,7.0713]
[1750713926711,38.06,141.38,141.21,610.32]
[1750713926919,7.3520623,141.34,141.28,4.7607]
[1750713927217,7.072,141.33,141.28,4.7607]
[1750713927521,45.4120623,141.34,141.28,4.7607]
[1750713927717,7.0733,141.31,141.28,4.7607]
[1750713928019,7.3520623,141.32,141.28,4.7607]
[1750713928913,14.4246623,141.32,141.28,4.7607]
[1750713929819,14.4246623,141.32,141.28,11.8351]
[1750713930516,38.06,141.34,141.28,4.7607]
[1750713930517,7.3520623,141.33,141.28,4.7607]
[1750713931719,7.3520623,141.33,141.3,7.0735]
[1750713932722,14.4242623,141.33,141.3,7.0735]
[1750713934222,38.06,141.34,141.31,7.073]
[1750713934521,38.06,141.34,141.29,7.3520623]
[1750713934718,38.06,141.34,141.32,7.0724]
[1750713936324,38.06,141.34,141.33,7.072]
[1750713940518,45.2720623,141.38,141.36,7.0705]
[1750713940727,37.92,141.38,141.31,7.3520623]
[1750713940923,37.92,141.38,141.31,45.2720623]
[1750713941322,37.92,141.38,141.37,7.07]
[1750713946532,37.92,141.38,141.36,7.0702]
[1750713950538,44.9897,141.38,141.35,7.0709]
[1750713951132,37.92,141.38,141.35,7.0709]
[1750713951332,37.92,141.38,141.34,7.0712]
[1750713951532,7.35098058,141.37,141.31,45.27098058]
[1750713951732,14.42128058,141.37,141.31,45.27098058]
[1750713951929,7.35098058,141.37,141.33,7.0717]
[1750713952129,14.42208058,141.35,141.29,9.60848058]
[1750713952328,14.42208058,141.35,141.31,7.0728]
[1750713952534,37.92,141.34,141.31,7.0728]
[1750713953340,37.92,141.34,141.32,7.0724]
[1750713954030,7.35098058,141.33,141.3,7.0731]
[1750713955036,7.35098058,141.33,141.27,7.35098058]
[1750713955037,7.35098058,141.33,141.31,7.073]
[1750713955943,7.35098058,141.33,141.32,7.0725]
[1750713956139,45.27098058,141.34,141.32,7.0725]
[1750713956340,37.92,141.34,141.29,7.35098058]
[1750713956535,37.92,141.34,141.33,7.072]
[1750713957139,7.35098058,141.37,141.29,9.69958058]
[1750713957140,52.34118058,141.37,141.35,7.071]
[1750713957940,52.34118058,141.37,141.34,7.0713]
[1750713960239,52.34118058,141.37,141.35,7.0709]
[1750713960535,37.92,141.37,141.31,7.35098058]
[1750713960938,37.92,141.37,141.35,7.0706]
[1750713961337,37.92,141.37,141.31,7.35098058]
[1750713962440,37.92,141.37,141.36,7.0705]
[1750713963739,37.92,141.37,141.3,45.17149065]
[1750713963941,13.09914475,141.36,141.29,2.3486]
[1750713964133,7.35149065,141.36,141.29,9.70009065]
[1750713964336,5.74875522,141.35,141.29,9.70009065]
[1750713964538,5.75576483,141.34,141.29,9.70009065]
[1750713964842,7.0711,141.35,141.29,9.70009065]
[1750713965043,5.75571443,141.34,141.29,9.70009065]
[1750713965241,7.35149065,141.36,141.29,9.70009065]
[1750713965438,7.0716,141.34,141.32,7.0722]
[1750713966042,5.76421812,141.33,141.32,7.0722]
[1750713966842,5.76421812,141.33,141.29,2.3486]
[1750713967049,5.76421812,141.32,141.29,2.3486]
[1750713967344,5.77265659,141.31,141.3,7.0735]
[1750713969248,5.77265659,141.31,141.29,7.0738]
[1750713969545,7.0725,141.32,141.29,7.0738]
[1750713969743,5.78295423,141.31,141.3,7.0735]
[1750713974550,7.0726,141.32,141.3,7.0735]
[1750713974751,7.0726,141.32,141.29,7.0738]
[1750713975054,7.35149065,141.3,141.21,7.35149065]
[1750713975246,8.40546346,141.31,141.21,7.35149065]
[1750713975247,7.35149065,141.28,141.24,7.0762]
[1750713975444,14.42629065,141.28,141.22,4.5834]
[1750713975842,5.75541215,141.27,141.24,7.0765]
[1750713976050,14.42629065,141.28,141.24,7.0765]
[1750713976349,7.075,141.27,141.23,7.0767]
[1750713977246,7.35149065,141.28,141.22,4.5834]
[1750713977448,7.35149065,141.26,141.22,4.5834]
[1750713977647,7.0763,141.25,141.22,4.5834]
[1750713978043,7.35149065,141.26,141.22,4.5834]
[1750713978247,7.077,141.23,141.19,7.0787]
[1750713978445,37.82,141.25,141.19,7.0787]
[1750713978446,7.35149065,141.24,141.19,7.0787]
[1750713978750,7.0773,141.23,141.19,7.0788]
[1750713979449,37.82,141.25,141.17,14.25789065]
[1750713979649,37.82,141.25,141.19,7.35149065]
[1750713979849,37.82,141.25,141.22,7.0772]
[1750713980047,37.82,141.25,141.19,7.35149065]
[1750713980248,45.19149065,141.28,141.21,7.35149065]
[1750713980447,52.26629065,141.28,141.25,7.0757]
[1750713980846,45.19149065,141.28,141.21,7.35149065]
[1750713981053,37.84,141.28,141.21,69.35149065]
[1750713981553,44.9145,141.28,141.25,7.0757]
[1750713982151,44.9145,141.28,141.26,7.0755]
[1750713982757,37.84,141.28,141.26,7.0755]
[1750713987052,44.9146,141.28,141.25,7.0758]
[1750713987255,52.26609065,141.28,141.2,45.19149065]
[1750713987553,52.26609065,141.28,141.17,6.9064]
[1750713987554,7.35149065,141.26,141.19,7.35149065]
[1750713987750,14.42729065,141.26,141.23,7.0767]
[1750713988151,14.42729065,141.26,141.19,7.35149065]
[1750713988746,14.42729065,141.26,141.22,7.0771]
[1750713988947,14.42729065,141.26,141.19,7.35149065]
[1750713989156,7.0761,141.25,141.19,7.35149065]
[1750713989858,7.0761,141.25,141.21,7.0775]
[1750713990256,7.0761,141.25,141.19,7.35149065]
[1750713991059,7.35149065,141.26,141.19,7.35149065]
[1750713991857,7.0766,141.24,141.21,7.0778]
[1750713993061,37.72,141.24,141.18,69.35149065]
[1750713993561,37.72,141.24,141.18,7.35149065]
[1750713993763,44.7969,141.24,141.2,7.0781]
[1750713994564,7.077,141.23,141.2,7.0781]
[1750713994763,45.07149065,141.24,141.19,7.0788]
[1750713994962,45.07149065,141.24,141.17,44.7464]
[1750713995264,7.0773,141.23,141.17,44.7464]
[1750713995466,45.07149065,141.24,141.19,7.0786]
[1750713995857,7.0776,141.22,141.19,7.0786]
[1750713996259,7.078,141.21,141.19,7.0786]
[1750713996461,7.35149065,141.22,141.17,4.6785]
[1750713996769,37.72,141.24,141.17,4.6785]
[1750713996770,7.35149065,141.2,141.17,4.6785]
[1750713996969,45.09149065,141.2,141.17,4.6785]
[1750713997155,45.09149065,141.2,141.13,1.23105223]
[1750713997355,45.09149065,141.2,141.13,5.69835223]
[1750713997802,7.0793,141.19,141.15,7.0807]
[1750713998471,44.8187,141.2,141.13,5.69835223]
[1750713998671,45.09149065,141.23,141.16,7.35149065]
[1750713998871,7.35149065,141.23,141.16,7.35149065]
[1750713999176,7.0777,141.22,141.16,7.35149065]
[1750714000370,7.0777,141.22,141.18,7.0792]
[1750714000965,7.0777,141.22,141.16,7.35149065]
[1750714001362,7.0777,141.22,141.18,7.0792]
[1750714002167,7.35149065,141.23,141.18,7.0792]
[1750714002375,7.0781,141.21,141.18,7.0792]
[1750714006179,7.0787,141.2,141.17,7.0799]
[1750714006674,44.8187,141.2,141.17,7.0799]
[1750714007172,44.8187,141.2,141.13,13.04984288]
[1750714008176,44.8187,141.2,141.16,7.0801]
[1750714008976,7.079,141.19,141.16,7.0801]
[1750714009377,37.74,141.2,141.16,7.0801]
[1750714009678,44.8188,141.2,141.16,7.0801]
[1750714010066,44.8188,141.2,141.13,5.69835223]
[1750714010067,37.74,141.2,141.13,13.04984288]
[1750714010279,37.74,141.2,141.14,7.35149065]
[1750714010683,37.74,141.2,141.17,7.0797]
[1750714010979,44.8187,141.2,141.13,13.04984288]
[1750714011185,37.74,141.2,141.13,13.04984288]
[1750714011777,37.74,141.2,141.18,7.0795]
[1750714011982,44.8186,141.2,141.18,7.0795]
[1750714012178,44.8186,141.2,141.17,7.0796]
[1750714012381,37.74,141.2,141.13,13.04984288]
[1750714012582,37.74,141.2,141.15,7.35149065]
[1750714012768,37.74,141.2,141.18,7.0794]
[1750714014276,44.8187,141.2,141.18,7.0794]
[1750714014778,7.0797,141.18,141.13,5.69835223]
[1750714015483,7.0797,141.18,141.15,7.0808]
[1750714018072,7.0802,141.17,141.13,4.4673]
[1750714018278,45.09149065,141.16,141.11,2.2261]
[1750714018585,45.09149065,141.15,141.11,7.0827]
[1750714018985,52.17289065,141.15,141.11,7.0827]
[1750714020284,52.17289065,141.15,141.09,4.5844]
[1750714021081,7.0815,141.14,141.09,4.5844]
[1750714021388,37.74,141.15,141.12,7.0823]
[1750714022086,44.821,141.15,141.12,7.0823]
[1750714022385,37.74,141.15,141.12,7.0823]
[1750714023186,44.8212,141.15,141.12,7.0823]
[1750714023390,44.8212,141.15,141.11,7.0828]
[1750714023890,7.35149065,141.14,141.1,7.0833]
[1750714024188,37.74,141.15,141.1,7.0833]
[1750714024387,7.0822,141.13,141.1,7.0833]
[1750714024787,7.35149065,141.14,141.09,11.6683]
[1750714025087,7.35149065,141.14,141.07,11.02591492]
[1750714025088,7.35149065,141.14,141.07,3.67442427]
[1750714025283,7.35149065,141.14,141.08,7.0843]
[1750714025995,7.35149065,141.12,141.08,7.0843]
[1750714026380,44.7831,141.11,141.08,7.0843]
[1750714028397,37.7,141.11,141.09,7.084]
[1750714028905,44.783,141.11,141.05,7.35149065]
[1750714029279,37.7,141.11,141.05,7.35149065]
[1750714029477,14.43519065,141.1,141.07,7.085]
[1750714031388,14.43519065,141.1,141.04,5.88492093]
[1750714031389,7.35149065,141.1,141.04,5.88492093]
[1750714031690,7.35149065,141.08,141.04,2.2718]
[1750714031890,44.7851,141.07,141.04,7.0861]
[1750714032095,37.7,141.07,141.0,50.93316135]
[1750714032292,37.7,141.07,140.93,13.08766265]
[1750714032500,7.35149065,141.05,140.88,68.858]
[1750714032798,5.58111902,141.06,140.92,7.35149065]
[1750714032799,617.40111902,141.04,140.92,7.35149065]
[1750714032996,14.44009065,141.0,140.94,7.091]
[1750714033194,39.44,141.0,140.94,7.091]
[1750714033699,39.44,141.0,140.93,7.35149065]
[1750714033880,46.79149065,141.0,140.92,7.35149065]
[1750714034109,7.0903,140.97,140.91,7.0927]
[1750714034394,46.79149065,140.96,140.89,1.23445842]
[1750714034593,46.79149065,140.96,140.89,8.58594907]
[1750714035098,46.79149065,140.96,140.89,15.67964907]
[1750714035283,46.79149065,140.96,140.89,8.32815842]
[1750714035484,7.0916,140.94,140.89,8.32825842]
[1750714035684,46.79149065,140.96,140.89,8.32825842]
[1750714035978,7.0913,140.95,140.9,7.0932]
[1750714036188,46.79149065,140.96,140.89,1.23445842]
[1750714036588,7.0914,140.94,140.89,8.32795842]
[1750714036986,7.0914,140.94,140.89,1.23445842]
[1750714037241,39.44,140.96,140.89,1.23445842]
[1750714037388,39.44,140.96,140.85,2.2596]
[1750714037389,7.35149065,140.9,140.85,2.2596]
[1750714037587,7.35149065,140.98,140.81,2.3027]
[1750714037588,7.35149065,140.88,140.81,2.3027]
[1750714037897,7.35149065,140.86,140.81,2.3027]
[1750714038086,46.81149065,140.86,140.81,2.3027]
[1750714038392,7.35149065,140.83,140.72,39.46]
[1750714038695,7.35149065,140.83,140.76,1.23577351]
[1750714039095,7.35149065,140.83,140.79,7.0984]
[1750714039391,7.35149065,140.83,140.76,1.23577351]
[1750714039697,14.44869065,140.83,140.78,7.0992]
[1750714040289,11.29277115,140.83,140.76,1.23577351]
[1750714040489,39.48,140.82,140.76,1.23577351]
[1750714040689,11.29277115,140.81,140.74,6.9397]
[1750714040890,11.29277115,140.81,140.75,7.1005]
[1750714041795,11.29277115,140.81,140.74,6.9397]
[1750714041987,39.48,140.82,140.74,18.23247115]
[1750714042295,0.78,140.81,140.74,18.23247115]
[1750714042489,0.78,140.81,140.77,7.0996]
[1750714042692,0.78,140.81,140.74,18.23247115]
[1750714042891,0.78,140.81,140.74,6.9397]
[1750714043094,40.28,140.81,140.75,11.29277115]
[1750714044295,40.28,140.81,140.78,7.099]
[1750714045187,47.3781,140.81,140.77,7.0996]
[1750714045701,47.3781,140.81,140.74,80.23247115]
[1750714046299,7.0984,140.8,140.76,7.1003]
[1750714046797,7.0991,140.79,140.76,7.1004]
[1750714046999,51.57277115,140.81,140.74,6.9397]
[1750714047184,51.57277115,140.81,140.64,11.29277115]
[1750714047185,11.29277115,140.77,140.67,39.5]
[1750714047392,11.29277115,140.77,140.7,7.1031]
[1750714047393,7.1014,140.74,140.7,7.1031]
[1750714047625,41.18,140.76,140.68,12.52913737]
[1750714048393,41.18,140.76,140.7,11.29277115]
[1750714048593,41.18,140.76,140.73,7.1016]
[1750714048800,41.18,140.76,140.7,11.29277115]
[1750714049296,41.18,140.76,140.72,7.1023]
[1750714050188,41.18,140.76,140.69,62.0]
[1750714050794,41.18,140.76,140.7,11.29277115]
[1750714051200,41.18,140.76,140.71,11.29277115]
[1750714051399,41.2,140.79,140.71,52.49277115]
[1750714051791,48.2992,140.79,140.75,7.1005]
[1750714052303,41.2,140.79,140.75,7.1005]
[1750714052493,48.2991,140.79,140.76,7.1004]
[1750714053402,0.78,140.81,140.73,11.29277115]
[1750714053597,0.78,140.81,140.76,11.29126689]
[1750714053598,41.98,140.81,140.76,11.29126689]
[1750714053894,41.98,140.81,140.78,7.0993]
[1750714054095,53.27575826,140.81,140.74,4.7679]
[1750714054297,7.0989,140.79,140.74,4.7679]
[1750714054499,7.0989,140.79,140.75,7.1005]
[1750714054700,41.98,140.81,140.74,4.7679]
[1750714055308,11.29575826,140.8,140.74,4.7679]
[1750714055998,41.98,140.81,140.74,4.7679]
[1750714056705,7.099,140.79,140.75,7.1009]
[1750714057001,41.98,140.81,140.74,16.06365826]
[1750714057306,0.78,140.81,140.76,11.29575826]
[1750714057703,0.78,140.81,140.78,7.0991]
[1750714058206,7.878,140.81,140.77,7.0997]
[1750714059505,7.878,140.81,140.78,7.0994]
[1750714060505,0.78,140.81,140.78,7.0994]
[1750714061507,0.78,140.81,140.76,11.29575826]
[1750714061902,0.78,140.81,140.79,7.0988]
[1750714062506,0.78,140.81,140.8,7.0984]
[1750714062819,41.2,140.84,140.79,7.40738318]
[1750714063006,41.2,140.84,140.83,7.0969]
[1750714063233,41.2,140.87,140.82,7.40738318]
[1750714063605,41.2,140.87,140.81,2.4084]
[1750714064111,7.0956,140.86,140.82,7.0969]
[1750714064502,48.60738318,140.87,140.82,7.0969]
[1750714065309,48.60738318,140.87,140.81,2.4084]
[1750714065910,7.0957,140.86,140.82,7.097]
[1750714066409,48.60738318,140.87,140.81,2.4084]
[1750714066610,7.0961,140.85,140.81,9.506]
[1750714067016,7.0966,140.84,140.81,2.4084]
[1750714067506,7.40738318,140.85,140.81,2.4084]
[1750714067913,7.0964,140.84,140.81,2.4084]
[1750714068211,7.40738318,140.85,140.8,7.098]
[1750714068409,7.0966,140.84,140.8,7.098]
[1750714069008,7.0966,140.84,140.81,7.0978]
[1750714069214,14.50348318,140.85,140.81,7.0978]
[1750714069422,7.40738318,140.85,140.76,41.2]
[1750714069711,7.40738318,140.85,140.78,7.40738318]
[1750714069913,7.0965,140.84,140.8,7.0979]
[1750714070108,7.40738318,140.85,140.78,62.0]
[1750714070308,7.40738318,140.85,140.78,7.40738318]
[1750714070617,7.0973,140.83,140.79,7.0988]
[1750714070812,7.40893427,140.84,140.79,7.0988]
[1750714071009,48.2973,140.83,140.79,7.0988]
[1750714071205,41.2,140.83,140.78,7.0992]
[1750714071513,41.2,140.83,140.75,14.52913427]
[1750714071916,7.0981,140.81,140.77,7.0996]
[1750714072313,7.40893427,140.82,140.77,7.0996]
[1750714072815,7.0983,140.81,140.77,7.0996]
[1750714073020,7.40893427,140.82,140.77,7.0996]
[1750714073314,7.0981,140.81,140.77,7.0996]
[1750714073514,7.40893427,140.82,140.75,14.52913427]
[1750714074112,7.40893427,140.82,140.77,7.0995]
[1750714074311,7.40893427,140.8,140.71,41.2]
[1750714074516,7.0991,140.79,140.75,7.1005]
[1750714074712,7.0991,140.79,140.73,7.40893427]
[1750714075014,41.2,140.79,140.71,7.40893427]
[1750714075214,7.40893427,140.78,140.71,7.40893427]
[1750714075615,7.0999,140.77,140.74,7.1011]
[1750714076111,7.40893427,140.78,140.71,7.40893427]
[1750714076311,7.1006,140.76,140.73,7.1017]
[1750714076517,7.40893427,140.76,140.7,4.6941]
[1750714076716,7.40893427,140.76,140.71,7.1029]
[1750714076912,7.40893427,140.76,140.68,8.64530049]
[1750714076913,7.40893427,140.74,140.68,1.23636622]
[1750714077520,41.2,140.75,140.68,1.23636622]
[1750714077818,7.40893427,140.72,140.68,1.23636622]
[1750714078117,7.40893427,140.72,140.64,7.40893427]
[1750714078311,7.40893427,140.72,140.65,1.23682761]
[1750714078511,14.51163427,140.72,140.65,1.23682761]
[1750714078716,41.2,140.75,140.66,7.40893427]
[1750714078911,5.58647122,140.74,140.68,7.40893427]
[1750714079121,48.60893427,140.75,140.68,7.40893427]
[1750714079713,5.59156874,140.74,140.67,7.40893427]
[1750714080017,48.60893427,140.75,140.67,7.40893427]
[1750714080221,5.59232051,140.74,140.69,7.40893427]
[1750714080516,41.2,140.75,140.69,7.40893427]
[1750714081223,41.2,140.75,140.74,7.1014]
[1750714081823,48.00893427,140.78,140.71,7.40893427]
[1750714082012,5.60604686,140.77,140.7,40.6]
[1750714082319,48.00893427,140.78,140.71,7.40893427]
[1750714082618,5.6056779,140.77,140.71,7.40893427]
[1750714082812,5.6056779,140.76,140.74,7.101]
[1750714083013,55.10873427,140.78,140.74,7.101]
[1750714083222,5.59939686,140.77,140.74,7.101]
[1750714083416,7.0999,140.77,140.74,7.101]
[1750714083716,48.00893427,140.78,140.74,7.101]
[1750714083918,5.5994876,140.77,140.71,7.40893427]
[1750714084118,55.10853427,140.78,140.71,7.40893427]
[1750714084319,5.59909886,140.77,140.75,7.1006]
[1750714084518,55.10853427,140.78,140.75,7.1006]
[1750714084717,5.59869502,140.77,140.75,7.1006]
[1750714085017,6.3615534,140.8,140.73,7.40893427]
[1750714085220,662.58986854,140.82,140.74,2.264]
[1750714085221,5.59969474,140.79,140.74,2.264]
[1750714085415,7.40893427,140.81,140.74,11.95073427]
[1750714085623,5.60034803,140.8,140.74,11.95073427]
[1750714085814,653.84,140.82,140.76,7.40893427]
[1750714086046,5.60063363,140.81,140.76,7.40893427]
[1750714086323,5.60063363,140.8,140.79,7.0988]
[1750714086527,660.9377,140.82,140.79,7.0988]
[1750714086731,5.58479435,140.81,140.8,7.0984]
[1750714087020,5.58479435,140.81,140.75,7.40893427]
[1750714087325,660.9377,140.82,140.78,7.099]
[1750714087519,5.58274932,140.81,140.78,7.099]
[1750714087715,653.84,140.82,140.74,45.1418]
[1750714087920,14.50813427,140.79,140.74,4.5418]
[1750714088128,7.40893427,140.79,140.74,4.5418]
[1750714088322,7.0997,140.78,140.74,11.6428]
[1750714088623,7.0997,140.78,140.74,4.5418]
[1750714088825,47.6997,140.78,140.74,4.5418]
[1750714089536,40.6,140.78,140.65,1.23682761]
[1750714089728,5.57940242,140.77,140.67,4.6019]
[1750714089924,40.6,140.78,140.67,4.6019]
[1750714089925,7.40893427,140.75,140.67,4.6019]
[1750714090117,14.51023427,140.75,140.69,7.1035]
[1750714090312,40.6,140.78,140.67,15.90654153]
[1750714090519,11.30464153,140.76,140.67,15.90654153]
[1750714090720,11.30464153,140.76,140.67,58.24654153]
[1750714090921,7.1013,140.75,140.7,7.1031]
[1750714091324,11.30464153,140.76,140.67,58.24654153]
[1750714091531,7.1014,140.74,140.69,7.1036]
[1750714091919,7.1013,140.75,140.7,7.1031]
[1750714092119,11.30464153,140.76,140.7,7.1031]
[1750714093530,18.40544153,140.76,140.7,7.1031]
[1750714094028,7.1008,140.76,140.71,7.1027]
[1750714095128,18.40474153,140.77,140.72,7.1024]
[1750714095321,11.30464153,140.77,140.67,58.24654153]
[1750714095724,7.1006,140.76,140.67,58.24654153]
[1750714096228,7.1009,140.75,140.67,58.24654153]
[1750714096434,7.1009,140.75,140.7,7.103]
[1750714096632,7.1009,140.75,140.67,58.24654153]
[1750714097231,7.1009,140.75,140.71,7.1028]
[1750714098426,42.34,140.74,140.67,46.9419]
[1750714099031,7.1022,140.73,140.69,7.1037]
[1750714099736,7.1022,140.73,140.7,7.1034]
[1750714101230,7.1022,140.73,140.69,7.1037]
[1750714101735,7.1025,140.72,140.69,7.1037]
[1750714102138,42.34,140.74,140.7,7.1034]
[1750714102437,11.30512907,140.77,140.67,58.24702907]
[1750714102737,7.1016,140.74,140.67,58.24702907]
[1750714103235,7.1007,140.76,140.69,11.30512907]
[1750714103934,53.66512907,140.78,140.69,11.30512907]
[1750714104135,42.36,140.78,140.71,11.30512907]
[1750714104335,613.24,140.82,140.77,7.0999]
[1750714104336,42.36,140.81,140.77,7.0999]
[1750714104541,42.36,140.81,140.73,11.30512907]
[1750714104746,42.36,140.81,140.74,4.5252]
[1750714105234,42.36,140.81,140.75,11.30512907]
[1750714105537,7.0985,140.8,140.75,11.30512907]
[1750714105834,42.36,140.81,140.75,11.30512907]
[1750714106225,42.36,140.81,140.74,4.5252]
[1750714106436,42.36,140.81,140.79,7.0984]
[1750714106839,42.36,140.81,140.74,4.5252]
[1750714107031,42.36,140.81,140.78,7.099]
[1750714107638,42.36,140.81,140.79,7.0989]
[1750714110640,49.458,140.81,140.79,7.0989]
[1750714111748,7.40948019,140.84,140.74,4.5252]
[1750714111749,7.40948019,140.8,140.74,4.5252]
[1750714112738,49.74948019,140.86,140.74,4.5252]
[1750714112951,49.74948019,140.86,140.78,7.40948019]
[1750714113452,7.0962,140.85,140.78,7.40948019]
[1750714113658,42.34,140.86,140.8,7.40948019]
[1750714113854,7.0962,140.85,140.81,7.0976]
[1750714114353,42.34,140.86,140.81,7.0976]
[1750714114754,7.0968,140.84,140.8,14.50768019]
[1750714115159,7.0968,140.84,140.8,7.40948019]
[1750714115459,7.0968,140.84,140.81,7.0976]
[1750714115753,42.34,140.86,140.8,7.40948019]
[1750714116156,7.0968,140.84,140.81,7.0978]
[1750714116656,42.34,140.86,140.8,7.40948019]
[1750714116855,7.0966,140.84,140.81,7.0976]
[1750714117259,7.0966,140.84,140.81,7.0978]
[1750714120057,49.74757787,140.86,140.78,9.65197787]
[1750714120654,7.40992683,140.84,140.76,7.40992683]
[1750714120859,7.40992683,140.82,140.76,7.40992683]
[1750714121067,50.26992683,140.82,140.76,7.40992683]
[1750714122059,7.0981,140.81,140.77,7.0995]
[1750714122259,50.26992683,140.82,140.74,47.3852]
[1750714122475,7.0988,140.8,140.76,7.0999]
[1750714122963,7.0988,140.8,140.75,7.40992683]
[1750714123162,7.0988,140.8,140.77,7.0998]
[1750714123754,7.0982,140.81,140.75,7.40992683]
[1750714123954,50.26992683,140.82,140.78,7.099]
[1750714124159,50.26992683,140.82,140.75,7.40992683]
[1750714125760,7.0982,140.81,140.78,7.0994]
[1750714126666,7.0985,140.8,140.77,7.0997]
[1750714126963,50.26992683,140.82,140.74,109.3852]
[1750714126964,50.26992683,140.82,140.75,7.40992683]